bitfinex/quotes_SOLUSD_20260223
["timestamp","ask_amount","ask_price","bid_price","bid_amount"]
[1771867719123,0.92085674,78.469,78.444,13.66945765]
[1771867719852,0.92085674,78.469,78.445,0.92151007]
[1771867720222,0.92085674,78.49,78.452,5.36086188]
[1771867720427,0.92085674,78.479,78.446,12.74762256]
[1771867720635,14.61452589,78.47,78.445,13.66915325]
[1771867720843,12.74047649,78.49,78.445,13.66915325]
[1771867720844,14.61452589,78.48,78.451,0.92151007]
[1771867721047,0.92085674,78.486,78.453,0.92151007]
[1771867721341,0.92085674,78.479,78.453,0.92151007]
[1771867721742,0.92085674,78.479,78.445,12.74764318]
[1771867721968,0.92085674,78.479,78.446,0.92151007]
[1771867722149,14.61452589,78.48,78.453,12.74648515]
[1771867722345,0.92085674,78.479,78.453,12.74648515]
[1771867722546,0.92085674,78.479,78.446,0.92151007]
[1771867722848,0.92085674,78.479,78.448,0.92151007]
[1771867723535,12.27331055,78.47,78.441,0.92151007]
[1771867723739,0.92085674,78.471,78.441,0.92151007]
[1771867724437,0.92085674,78.471,78.443,0.92151007]
[1771867725832,12.27331055,78.5,78.442,12.7482726]
[1771867725833,0.92085674,78.469,78.442,12.7482726]
[1771867726232,0.92085674,78.469,78.443,0.92151007]
[1771867726438,0.92085674,78.469,78.445,0.92151007]
[1771867727247,0.92085674,78.474,78.445,0.92151007]
[1771867727452,12.27331055,78.48,78.444,44.61781653]
[1771867727453,12.27331055,78.48,78.451,0.92151007]
[1771867727835,0.87215486,78.479,78.451,0.92151007]
[1771867728749,0.87215486,78.499,78.461,0.89463505]
[1771867729142,0.87215486,78.499,78.471,0.89463505]
[1771867730052,0.87215486,78.509,78.481,0.89463505]
[1771867730347,13.14546541,78.49,78.463,0.89463505]
[1771867730547,0.87215486,78.489,78.464,12.7446982]
[1771867730747,0.87215486,78.487,78.456,0.89463505]
[1771867731329,0.87215486,78.487,78.461,0.89463505]
[1771867732655,0.87215486,78.495,78.463,0.89463505]
[1771867733034,0.87215486,78.504,78.471,0.89463505]
[1771867733230,0.87215486,78.504,78.462,44.60758073]
[1771867733231,0.87215486,78.499,78.463,0.89463505]
[1771867733646,12.27331055,78.5,78.471,0.89463505]
[1771867733852,0.87215486,78.499,78.471,0.89463505]
[1771867734866,0.87215486,78.517,78.474,5.36086188]
[1771867735152,0.87215486,78.509,78.474,0.89463505]
[1771867735845,0.87215486,78.509,78.48,13.1679456]
[1771867736046,0.87215486,78.499,78.473,0.89463505]
[1771867736240,0.87215486,78.509,78.473,0.89463505]
[1771867737246,0.87215486,78.509,78.475,0.89463505]
[1771867737657,0.87215486,78.499,78.474,12.74307413]
[1771867737838,0.87215486,78.499,78.466,12.74437335]
[1771867738450,0.87215486,78.499,78.47,12.27331055]
[1771867739054,0.87215486,78.499,78.471,0.89463505]
[1771867739253,0.87215486,78.499,78.473,0.89463505]
[1771867741371,0.87215486,78.498,78.473,0.89463505]
[1771867741664,0.87215486,78.479,78.445,0.89463505]
[1771867741848,12.27331055,78.47,78.445,0.89463505]
[1771867742262,0.87215486,78.471,78.445,0.89463505]
[1771867742455,12.27331055,78.47,78.445,0.89463505]
[1771867742662,0.87215486,78.469,78.445,0.89463505]
[1771867743264,12.27331055,78.46,78.438,12.74892271]
[1771867743465,13.14546541,78.46,78.438,12.74892271]
[1771867744570,0.87215486,78.46,78.438,12.74892271]
[1771867745067,0.87215486,78.469,78.441,0.89463505]
[1771867745258,0.87215486,78.469,78.442,12.7482726]
[1771867745468,0.87215486,78.467,78.442,12.7482726]
[1771867747564,0.87215486,78.469,78.442,13.64290765]
[1771867747767,0.87215486,78.469,78.442,12.7482726]
[1771867748766,0.87215486,78.469,78.442,13.64290765]
[1771867748955,0.87215486,78.469,78.443,0.89463505]
[1771867749567,0.87215486,78.469,78.445,0.89463505]
[1771867751382,0.87215486,78.469,78.44,25.9164109]
[1771867751672,3.69383402,78.494,78.402,51.01854021]
[1771867751673,12.27331055,78.46,78.436,12.74923138]
[1771867751994,12.27331055,78.46,78.424,31.87785003]
[1771867751995,0.87215486,78.459,78.428,12.75054827]
[1771867752270,0.87215486,78.449,78.423,12.75126244]
[1771867752571,0.87215486,78.449,78.423,13.64589749]
[1771867752865,0.87215486,78.449,78.424,0.89463505]
[1771867753565,0.87215486,78.449,78.425,12.75103602]
[1771867754361,12.27331055,78.45,78.424,0.89463505]
[1771867754362,12.74729757,78.448,78.424,0.89463505]
[1771867754566,0.87215486,78.447,78.424,0.89463505]
[1771867754873,12.27331055,78.46,78.431,0.89463505]
[1771867755258,0.87215486,78.459,78.431,0.89463505]
[1771867755450,0.87215486,78.459,78.432,12.749898]
[1771867755652,0.87215486,78.459,78.433,0.89463505]
[1771867756251,0.87215486,78.449,78.427,12.75065726]
[1771867756452,0.87215486,78.449,78.428,0.89463505]
[1771867756656,0.87215486,78.449,78.427,12.75065726]
[1771867756848,0.87215486,78.449,78.42,12.27331055]
[1771867757053,0.87215486,78.449,78.422,0.89463505]
[1771867757874,12.74559681,78.459,78.4,12.27331055]
[1771867757875,0.83503803,78.458,78.424,0.82867624]
[1771867760957,0.79798017,78.449,78.425,12.75103602]
[1771867761157,0.79798017,78.449,78.416,12.75249948]
[1771867761363,0.79798017,78.449,78.417,0.80594841]
[1771867761759,0.79798017,78.449,78.42,12.27331055]
[1771867761961,0.79798017,78.449,78.421,0.80594841]
[1771867762164,0.79798017,78.449,78.417,0.80594841]
[1771867762365,0.79798017,78.433,78.409,0.80594841]
[1771867763055,0.79798017,78.433,78.411,0.80594841]
[1771867763959,0.79798017,78.44,78.411,0.80594841]
[1771867764366,0.79798017,78.439,78.411,0.80594841]
[1771867765265,0.79798017,78.439,78.412,12.75315002]
[1771867765463,0.79798017,78.439,78.413,0.80594841]
[1771867766372,0.79798017,78.459,78.421,0.80594841]
[1771867766776,0.79798017,78.449,78.421,0.80594841]
[1771867767263,0.79798017,78.449,78.423,0.80594841]
[1771867767459,13.54527774,78.448,78.423,0.80594841]
[1771867767661,0.79798017,78.448,78.423,0.80594841]
[1771867767863,0.79798017,78.448,78.422,12.7515238]
[1771867767864,0.79798017,78.447,78.422,12.7515238]
[1771867768163,0.79798017,78.447,78.423,0.80594841]
[1771867769260,5.50378826,78.47,78.432,12.749898]
[1771867769456,0.79798017,78.469,78.433,0.80594841]
[1771867769659,0.79798017,78.459,78.433,0.80594841]
[1771867770159,0.79798017,78.449,78.431,12.75006056]
[1771867770574,0.79798017,78.459,78.431,13.55600897]
[1771867771079,0.79798017,78.459,78.431,12.75006056]
[1771867771260,0.79798017,78.457,78.426,0.80594841]
[1771867771660,0.79798017,78.449,78.425,12.75103602]
[1771867771856,44.60985495,78.458,78.416,12.75241933]
[1771867771857,0.79798017,78.439,78.416,12.75241933]
[1771867772080,0.79798017,78.446,78.417,0.80594841]
[1771867772268,0.79798017,78.446,78.42,5.50378826]
[1771867772463,0.79798017,78.446,78.42,6.30973667]
[1771867773587,13.5457101,78.446,78.421,13.55763482]
[1771867773775,0.79798017,78.445,78.422,0.80594841]
[1771867773979,0.79798017,78.458,78.422,0.80594841]
[1771867775773,12.74551039,78.459,78.421,44.63090243]
[1771867775774,0.79798017,78.456,78.424,0.80594841]
[1771867775966,0.79798017,78.449,78.424,0.80594841]
[1771867776882,31.85990938,78.469,78.431,0.80594841]
[1771867776883,0.79798017,78.458,78.431,0.80594841]
[1771867777977,0.79798017,78.456,78.433,0.80594841]
[1771867778477,0.79798017,78.456,78.432,12.749898]
[1771867778787,0.79798017,78.456,78.432,13.55584641]
[1771867779088,0.79798017,78.456,78.433,0.80594841]
[1771867779970,0.79798017,78.456,78.435,0.80594841]
[1771867780778,0.79798017,78.468,78.435,0.80594841]
[1771867780984,0.79798017,78.475,78.441,0.80594841]
[1771867781580,6.30176843,78.47,78.441,0.80594841]
[1771867781776,0.79798017,78.469,78.441,0.80594841]
[1771867782096,0.79798017,78.459,78.434,12.74957288]
[1771867782394,12.74567284,78.458,78.434,12.74957288]
[1771867782564,0.79798017,78.449,78.43,0.80594841]
[1771867782769,0.79798017,78.449,78.417,0.80594841]
[1771867783176,0.79798017,78.449,78.421,0.80594841]
[1771867783990,0.79798017,78.459,78.433,0.80594841]
[1771867785898,0.79798017,78.458,78.432,12.749898]
[1771867786092,0.79798017,78.449,78.419,0.80594841]
[1771867786291,0.79798017,78.439,78.419,0.80594841]
[1771867786593,0.79798017,78.439,78.419,13.5579063]
[1771867786795,0.79798017,78.439,78.42,0.80594841]
[1771867787301,0.79798017,78.444,78.42,0.80594841]
[1771867788084,0.79798017,78.444,78.421,12.75168641]
[1771867788302,0.79798017,78.444,78.421,13.506491]
[1771867788491,0.80768874,78.443,78.421,0.75480459]
[1771867789602,0.80768874,78.439,78.417,0.75480459]
[1771867789799,0.80768874,78.439,78.411,13.50809951]
[1771867789985,0.80768874,78.439,78.412,0.75480459]
[1771867790586,0.80768874,78.419,78.371,0.75480459]
[1771867790794,5.50194727,78.39,78.371,0.75480459]
[1771867790995,3.69383402,78.424,78.371,0.75480459]
[1771867790996,0.80768874,78.393,78.371,0.75480459]
[1771867791504,0.80768874,78.393,78.371,13.51462646]
[1771867791682,5.50194727,78.4,78.372,0.75480459]
[1771867791683,6.30963601,78.4,78.372,0.75480459]
[1771867791885,0.80768874,78.409,78.372,0.75480459]
[1771867792401,5.50194727,78.4,78.372,0.75480459]
[1771867792585,0.80768874,78.402,78.374,0.75480459]
[1771867792898,0.80768874,78.389,78.37,12.8630458]
[1771867793486,0.80768874,78.397,78.371,0.75480459]
[1771867794602,5.50194727,78.4,78.37,31.12481728]
[1771867794603,5.50194727,78.4,78.373,0.75480459]
[1771867794783,0.80768874,78.399,78.373,0.75480459]
[1771867795382,0.80768874,78.409,78.373,0.75480459]
[1771867795580,0.80768874,78.399,78.373,0.75480459]
[1771867796606,12.75542743,78.398,78.373,0.75480459]
[1771867796797,0.80768874,78.397,78.373,0.75480459]
[1771867797105,0.80768874,78.397,78.374,13.51413804]
[1771867797310,0.80768874,78.397,78.374,0.75480459]
[1771867797685,5.50194727,78.4,78.37,31.12486808]
[1771867797686,12.75530793,78.399,78.37,12.8630458]
[1771867797910,5.50194727,78.38,78.36,0.1]
[1771867798086,12.75530793,78.399,78.36,0.1]
[1771867798087,12.75530793,78.399,78.36,0.92413029]
[1771867798410,5.50194727,78.4,78.371,0.82413029]
[1771867798703,5.50194727,78.4,78.37,5.50194727]
[1771867798704,5.50194727,78.41,78.373,0.82413029]
[1771867798908,3.69383402,78.421,78.373,0.82413029]
[1771867799115,5.50194727,78.39,78.361,12.76145021]
[1771867799402,5.50194727,78.38,78.36,0.1]
[1771867799785,3.69383402,78.411,78.362,0.82413029]
[1771867799989,3.69383402,78.411,78.36,0.1]
[1771867799990,5.50194727,78.4,78.36,0.1]
[1771867800191,5.50194727,78.37,78.343,0.82413029]
[1771867800508,3.69383402,78.397,78.344,0.82413029]
[1771867800687,5.50194727,78.38,78.344,0.82413029]
[1771867800888,5.50194727,78.38,78.342,0.2457969]
[1771867800889,5.50194727,78.37,78.346,0.82413029]
[1771867801088,5.50194727,78.37,78.343,13.58851255]
[1771867801309,5.50194727,78.4,78.343,13.58851255]
[1771867801310,44.62862607,78.425,78.361,0.82413029]
[1771867801509,5.50194727,78.38,78.349,0.82413029]
[1771867801692,5.50194727,78.38,78.351,0.82413029]
[1771867801887,5.50194727,78.39,78.351,0.82413029]
[1771867802209,5.50194727,78.36,78.342,0.2457969]
[1771867802403,3.69383402,78.385,78.342,0.2457969]
[1771867802712,5.50194727,78.35,78.342,0.2457969]
[1771867802887,3.69383402,78.385,78.342,0.2457969]
[1771867802888,5.50194727,78.36,78.342,0.2457969]
[1771867803085,5.50194727,78.36,78.343,0.82413029]
[1771867803284,44.65196978,78.384,78.302,0.82413029]
[1771867803285,95.68279239,78.384,78.302,0.82413029]
[1771867803504,5.50194727,78.36,78.331,0.82413029]
[1771867803713,5.50194727,78.37,78.341,0.82413029]
[1771867803888,5.50194727,78.39,78.361,0.82413029]
[1771867804088,18.25872751,78.39,78.361,0.82413029]
[1771867804291,5.50194727,78.38,78.341,0.82413029]
[1771867804808,5.50194727,78.4,78.32,5.50194727]
[1771867804809,5.50194727,78.4,78.361,0.82413029]
[1771867805011,5.50194727,78.44,78.36,5.50194727]
[1771867805012,5.50194727,78.41,78.381,0.82413029]
[1771867805611,12.75331267,78.411,78.381,0.82413029]
[1771867805792,5.50194727,78.41,78.381,0.82413029]
[1771867807193,12.29644859,78.41,78.381,0.82413029]
[1771867807395,12.29644859,78.4,78.371,0.82413029]
[1771867807700,12.75363797,78.409,78.371,0.82413029]
[1771867808108,12.29644859,78.4,78.371,0.82413029]
[1771867808307,12.29644859,78.4,78.371,13.58395216]
[1771867808502,12.75363797,78.409,78.372,0.82413029]
[1771867808697,12.29644859,78.4,78.372,0.82413029]
[1771867809513,12.29644859,78.39,78.361,0.82413029]
[1771867810288,44.64342656,78.399,78.362,0.82413029]
[1771867810586,12.29644859,78.4,78.371,0.82413029]
[1771867810790,50.98168974,78.46,78.391,0.82413029]
[1771867810791,12.29644859,78.43,78.391,0.82413029]
[1771867811106,12.29644859,78.42,78.391,0.82413029]
[1771867811302,108.34788593,78.451,78.361,44.66507573]
[1771867811303,12.75363797,78.409,78.361,31.90362552]
[1771867811607,12.29644859,78.4,78.366,0.82413029]
[1771867812613,12.29644859,78.41,78.381,0.82413029]
[1771867813501,12.29644859,78.41,78.344,51.05685589]
[1771867813502,3.69383402,78.387,78.324,0.82413029]
[1771867813701,12.29644859,78.36,78.324,0.82413029]
[1771867814006,12.29644859,78.36,78.331,0.82413029]
[1771867814610,12.29644859,78.35,78.331,0.82413029]
[1771867815199,12.29644859,78.35,78.314,31.92273186]
[1771867815200,12.29644859,78.34,78.305,0.82413029]
[1771867815395,12.29644859,78.33,78.292,0.82413029]
[1771867815591,12.29644859,78.32,78.292,0.82413029]
[1771867815788,12.29644859,78.32,78.296,0.82413029]
[1771867816911,12.29644859,78.32,78.291,12.77286022]
[1771867816912,12.29644859,78.34,78.306,0.82413029]
[1771867817220,12.29644859,78.34,78.311,0.82413029]
[1771867817398,12.76503401,78.339,78.311,0.82413029]
[1771867818214,12.29644859,78.35,78.312,0.82413029]
[1771867818419,12.29644859,78.34,78.304,0.82413029]
[1771867818616,12.29644859,78.33,78.3,12.29644859]
[1771867818803,12.29644859,78.33,78.292,44.70443978]
[1771867818804,12.29644859,78.35,78.312,5.36086188]
[1771867819115,12.29644859,78.34,78.313,0.82413029]
[1771867819300,12.29644859,78.34,78.302,0.82413029]
[1771867819501,12.29644859,78.33,78.3,12.29644859]
[1771867819805,12.76503401,78.339,78.302,0.82413029]
[1771867820202,44.67761905,78.339,78.302,0.82413029]
[1771867820714,12.29644859,78.33,78.302,0.82413029]
[1771867820901,12.76503401,78.339,78.302,0.82413029]
[1771867822009,114.83992881,78.37,78.288,5.36086188]
[1771867822010,12.29644859,78.35,78.311,0.82413029]
[1771867822213,12.76340476,78.349,78.311,0.82413029]
[1771867822810,44.67191667,78.349,78.311,0.82413029]
[1771867823016,12.29644859,78.34,78.306,0.82413029]
[1771867823612,44.67191667,78.349,78.306,0.82413029]
[1771867823927,44.67191667,78.349,78.311,0.82413029]
[1771867824317,12.76340476,78.349,78.313,0.82413029]
[1771867824929,44.67191667,78.349,78.313,0.82413029]
[1771867825124,44.67191667,78.349,78.303,31.92725693]
[1771867825125,12.29644859,78.33,78.294,0.82413029]
[1771867825331,12.29644859,78.33,78.294,13.59641105]
[1771867825919,12.29644859,78.33,78.295,0.82413029]
[1771867826230,12.29644859,78.33,78.306,0.2]
[1771867826435,12.29644859,78.4,78.311,0.82413029]
[1771867826604,12.29644859,78.4,78.322,5.36086188]
[1771867826605,12.29644859,78.36,78.322,5.36086188]
[1771867826810,12.29644859,78.37,78.331,0.82413029]
[1771867827236,5.51596961,78.36,78.331,0.82413029]
[1771867827414,5.51596961,78.37,78.331,0.82413029]
[1771867827728,5.51596961,78.36,78.331,0.82413029]
[1771867827932,5.51596961,78.35,78.331,0.82413029]
[1771867828118,5.51596961,78.35,78.326,0.2]
[1771867828630,5.51596961,78.36,78.326,0.2]
[1771867830428,5.51596961,78.34,78.316,0.2]
[1771867830738,12.76666368,78.329,78.316,0.2]
[1771867831038,44.68332289,78.329,78.295,0.82413029]
[1771867831252,44.68332289,78.329,78.299,0.82413029]
[1771867831538,44.68332289,78.329,78.3,5.51596961]
[1771867831847,44.68332289,78.329,78.299,0.82413029]
[1771867833347,44.68332289,78.329,78.25,3.69383402]
[1771867833348,44.67134651,78.35,78.307,0.82413029]
[1771867833521,5.51596961,78.36,78.321,0.82413029]
[1771867833719,44.66621574,78.359,78.321,0.82413029]
[1771867834524,12.76177592,78.359,78.331,0.82413029]
[1771867835420,31.90107654,78.368,78.331,0.82413029]
[1771867835641,31.90107654,78.368,78.332,0.82413029]
[1771867837027,12.31135438,78.36,78.332,0.82413029]
[1771867837427,12.76177592,78.359,78.332,0.82413029]
[1771867838647,12.31135438,78.37,78.333,0.82413029]
[1771867839724,12.7601475,78.369,78.333,0.82413029]
[1771867840144,44.66051626,78.369,78.333,0.82413029]
[1771867840938,44.66051626,78.369,78.335,0.82413029]
[1771867842649,12.31135438,78.37,78.335,0.82413029]
[1771867843027,12.31135438,78.36,78.325,0.82413029]
[1771867843232,3.69383402,78.381,78.265,51.10797842]
[1771867843233,12.31135438,78.35,78.317,0.82413029]
[1771867843430,12.31135438,78.33,78.293,0.82413029]
[1771867844849,44.68332289,78.329,78.293,0.82413029]
[1771867845439,44.68332289,78.329,78.28,31.93659972]
[1771867845440,44.68332289,78.329,78.301,0.82413029]
[1771867845643,12.76666368,78.329,78.301,0.82413029]
[1771867846642,12.32167715,78.35,78.311,0.82413029]
[1771867847147,12.32167715,78.34,78.311,0.82413029]
[1771867847830,248.7943045,78.378,78.311,0.82413029]
[1771867847831,12.32167715,78.35,78.311,0.82413029]
[1771867848143,12.32167715,78.34,78.311,0.82413029]
[1771867848339,3.69383402,78.367,78.305,12.7705438]
[1771867848340,12.32167715,78.36,78.32,12.32167715]
[1771867848654,12.32167715,78.36,78.321,0.82413029]
[1771867848829,44.66621574,78.359,78.321,0.82413029]
[1771867849330,12.32167715,78.35,78.321,0.82413029]
[1771867850243,12.76340476,78.349,78.321,0.82413029]
[1771867851753,44.67191667,78.349,78.321,0.82413029]
[1771867852844,44.67191667,78.349,78.313,13.59338268]
[1771867853054,44.67191667,78.349,78.314,0.82413029]
[1771867853835,44.67191667,78.349,78.321,0.82413029]
[1771867855047,12.32167715,78.36,78.321,0.82413029]
[1771867855048,44.66621574,78.359,78.321,0.82413029]
[1771867855243,44.66621574,78.359,78.323,0.82413029]
[1771867855648,44.66621574,78.359,78.314,0.82413029]
[1771867855649,12.32167715,78.34,78.314,0.82413029]
[1771867857072,12.76503401,78.339,78.314,0.82413029]
[1771867858648,12.76503401,78.339,78.315,0.82413029]
[1771867858849,12.76340476,78.349,78.315,0.82413029]
[1771867859254,12.76340476,78.349,78.321,0.82413029]
[1771867859454,44.67191667,78.349,78.321,0.82413029]
[1771867860359,12.76340476,78.349,78.321,0.82413029]
[1771867860555,31.90533933,78.357,78.32,5.51834118]
[1771867860556,5.51834118,78.36,78.322,12.7678047]
[1771867860758,5.51834118,78.36,78.323,0.82413029]
[1771867861167,5.51834118,78.35,78.323,0.82413029]
[1771867861367,63.80535344,78.364,78.313,0.82413029]
[1771867861368,5.51834118,78.34,78.313,0.82413029]
[1771867861661,5.51834118,78.32,78.291,0.82413029]
[1771867862041,5.51834118,78.33,78.291,0.82413029]
[1771867862540,5.51834118,78.3,78.271,0.82413029]
[1771867863359,44.69473495,78.309,78.271,0.82413029]
[1771867863557,12.76796772,78.321,78.291,0.82413029]
[1771867864062,44.68788702,78.321,78.291,0.82413029]
[1771867864246,12.76796772,78.321,78.291,0.82413029]
[1771867864449,12.3306852,78.32,78.291,0.82413029]
[1771867864741,12.76829377,78.319,78.291,0.82413029]
[1771867865060,12.76829377,78.319,78.292,0.82413029]
[1771867865747,12.3306852,78.32,78.293,0.82413029]
[1771867866144,3.69383402,78.343,78.293,0.82413029]
[1771867866344,12.3306852,78.32,78.293,0.82413029]
[1771867866759,25.09891074,78.32,78.295,0.82413029]
[1771867867241,25.09891074,78.32,78.272,5.36086188]
[1771867867242,12.3306852,78.31,78.223,51.13539036]
[1771867867443,44.6885524,78.32,78.127,76.79769321]
[1771867867444,12.3306852,78.29,78.25,12.3306852]
[1771867867657,12.3306852,78.29,78.251,0.82413029]
[1771867868250,6.67761938,78.291,78.232,5.36086188]
[1771867868251,6.67761938,78.291,78.261,0.82413029]
[1771867868471,6.67761938,78.291,78.27,12.3306852]
[1771867868671,6.67761938,78.291,78.269,0.82413029]
[1771867868855,6.67761938,78.291,78.232,5.36086188]
[1771867868856,12.77302337,78.29,78.27,13.15481549]
[1771867869060,12.77302337,78.29,78.27,0.82413029]
[1771867869372,6.67761938,78.291,78.27,13.15481549]
[1771867869589,6.67761938,78.291,78.271,0.82413029]
[1771867870372,12.77302337,78.29,78.271,0.82413029]
[1771867870954,12.77302337,78.29,78.229,51.13188335]
[1771867870955,6.67761938,78.291,78.273,0.82413029]
[1771867871669,19.45051992,78.291,78.273,0.82413029]
[1771867871870,6.67761938,78.291,78.273,0.82413029]
[1771867872577,12.77302337,78.29,78.261,0.82413029]
[1771867872756,12.3306852,78.28,78.253,0.82413029]
[1771867872951,12.3306852,78.28,78.24,12.3306852]
[1771867872952,12.3306852,78.28,78.243,0.82413029]
[1771867873373,57.036267,78.29,78.251,0.82413029]
[1771867873952,0.15844426,78.273,78.251,0.82413029]
[1771867875070,12.3306852,78.3,78.261,0.7665673]
[1771867875661,44.69074006,78.316,78.281,0.7665673]
[1771867875662,0.07681116,78.315,78.281,0.7665673]
[1771867876080,12.76878287,78.316,78.281,0.7665673]
[1771867876465,12.76878287,78.316,78.291,0.7665673]
[1771867877058,3.69383402,78.347,78.262,5.36086188]
[1771867877059,12.3306852,78.34,78.301,0.7665673]
[1771867878062,12.3306852,78.34,78.311,0.76076375]
[1771867878268,12.3306852,78.33,78.311,0.76076375]
[1771867878668,0.07442097,78.339,78.311,0.76076375]
[1771867878866,0.07442097,78.329,78.293,0.76076375]
[1771867879072,12.3306852,78.3,78.261,0.76076375]
[1771867879979,12.3306852,78.3,78.271,0.76076375]
[1771867880170,12.3306852,78.29,78.259,0.76076375]
[1771867880570,0.07384049,78.295,78.261,0.76758561]
[1771867880780,12.40348995,78.3,78.261,0.76758561]
[1771867881386,0.07229579,78.298,78.261,0.76758561]
[1771867881582,12.3306852,78.29,78.261,0.76758561]
[1771867882188,12.3306852,78.28,78.252,0.76758561]
[1771867882789,12.40298099,78.29,78.252,0.76758561]
[1771867883970,44.70615283,78.289,78.252,0.76758561]
[1771867884991,0.07080372,78.288,78.252,0.76758561]
[1771867885286,0.07080372,78.288,78.25,12.3306852]
[1771867885287,0.07031774,78.288,78.254,0.76758561]
[1771867885596,12.3306852,78.28,78.254,0.76758561]
[1771867885999,0.07031774,78.288,78.254,0.76758561]
[1771867886679,12.3306852,78.28,78.254,0.76758561]
[1771867888391,0.06889305,78.269,78.235,13.54948279]
[1771867888570,12.3306852,78.26,78.236,0.76758561]
[1771867889173,0.06889305,78.269,78.236,0.76758561]
[1771867889491,0.06889305,78.269,78.22,5.99086188]
[1771867889492,12.3306852,78.26,78.227,0.76758561]
[1771867889681,12.39911422,78.26,78.227,0.76758561]
[1771867889887,12.3306852,78.26,78.227,0.76758561]
[1771867890394,0.06842902,78.268,78.233,0.76758561]
[1771867890694,12.3306852,78.26,78.233,0.76758561]
[1771867891075,12.3306852,78.27,78.233,0.76758561]
[1771867891276,12.3306852,78.26,78.233,0.76758561]
[1771867892386,12.77808303,78.259,78.233,0.76758561]
[1771867892775,44.7232906,78.259,78.233,0.76758561]
[1771867894100,12.3306852,78.25,78.221,0.76758561]
[1771867894279,12.3306852,78.24,78.221,0.76758561]
[1771867894479,12.78134945,78.239,78.221,0.76758561]
[1771867895001,12.78073504,78.243,78.221,0.76758561]
[1771867895375,0.06575464,78.269,78.221,0.76758561]
[1771867895699,12.3306852,78.27,78.231,0.76758561]
[1771867896596,12.3306852,78.28,78.241,0.76758561]
[1771867897490,44.70215591,78.296,78.251,0.76758561]
[1771867897701,12.3306852,78.27,78.241,0.76758561]
[1771867898204,12.3306852,78.26,78.232,0.76758561]
[1771867898492,0.06448538,78.292,78.241,0.76758561]
[1771867898702,12.3306852,78.28,78.241,0.76758561]
[1771867899181,12.3306852,78.28,78.233,44.73815396]
[1771867899182,12.3306852,78.28,78.251,0.76758561]
[1771867900701,12.77481827,78.279,78.251,0.76758561]
[1771867901102,0.06325936,78.292,78.251,44.72772289]
[1771867901281,44.69644726,78.306,78.247,12.77997906]
[1771867901282,0.06325936,78.279,78.247,12.77997906]
[1771867901482,12.3306852,78.27,78.243,0.76758561]
[1771867902984,25.10699567,78.27,78.245,0.76758561]
[1771867904394,12.77565763,78.274,78.245,0.76758561]
[1771867904701,12.77379533,78.286,78.251,0.76758561]
[1771867904997,12.77155519,78.299,78.263,0.76758561]
[1771867905700,12.3306852,78.3,78.263,0.76758561]
[1771867905883,12.77155519,78.299,78.263,0.76758561]
[1771867906591,12.3306852,78.29,78.263,0.76758561]
[1771867907105,25.10385532,78.29,78.256,12.77857288]
[1771867907280,25.10720337,78.29,78.257,0.76758561]
[1771867908409,12.77155519,78.299,78.257,0.76758561]
[1771867909303,44.70044317,78.299,78.259,0.74490816]
[1771867909495,12.33403325,78.29,78.259,0.74490816]
[1771867910013,0.05982622,78.297,78.259,0.74490816]
[1771867912605,0.05875891,78.322,78.271,0.74490816]
[1771867912802,3.69383402,78.323,78.264,0.74490816]
[1771867912803,0.05875891,78.299,78.264,0.74490816]
[1771867913008,0.05875891,78.289,78.254,0.74490816]
[1771867913312,12.33403325,78.28,78.254,0.74490816]
[1771867914192,0.05841128,78.283,78.254,0.74490816]
[1771867914193,0.05806764,78.289,78.254,0.74490816]
[1771867914392,12.33403325,78.29,78.261,0.74490816]
[1771867914815,12.77318652,78.289,78.262,12.77759321]
[1771867915112,12.77318652,78.289,78.263,0.74490816]
[1771867915794,12.77318652,78.289,78.264,12.77726668]
[1771867915995,12.77318652,78.289,78.265,0.74490816]
[1771867917514,12.77249854,78.294,78.265,0.74490816]
[1771867917688,0.05706023,78.29,78.265,0.74490816]
[1771867917889,12.39109348,78.29,78.265,0.74490816]
[1771867918509,12.33403325,78.29,78.265,0.74490816]
[1771867918724,12.33403325,78.31,78.271,0.74490816]
[1771867919095,12.33403325,78.31,78.281,0.74490816]
[1771867920029,0.05640776,78.344,78.291,0.74490816]
[1771867920196,0.05640776,78.329,78.291,0.74490816]
[1771867920616,20.56761127,79.492,78.301,0.74490816]
[1771867920617,0.05608713,78.339,78.301,0.74490816]
[1771867920916,0.05608713,78.349,78.311,0.74490816]
[1771867921119,12.7612217,78.363,78.331,0.74490816]
[1771867921415,12.33403325,78.34,78.313,0.74490816]
[1771867921620,12.33403325,78.34,78.305,0.74490816]
[1771867921621,0.05577019,78.339,78.305,0.74490816]
[1771867921820,12.33403325,78.33,78.305,0.74490816]
[1771867922126,12.76666368,78.329,78.305,0.74490816]
[1771867922296,12.33403325,78.32,78.297,0.74490816]
[1771867922702,0.05545689,78.309,78.278,0.74490816]
[1771867922906,12.33403325,78.3,78.278,0.74490816]
[1771867923208,0.05545689,78.309,78.278,0.74490816]
[1771867924012,0.05514718,78.308,78.28,12.33403325]
[1771867924206,0.05514718,78.308,78.281,0.74490816]
[1771867924517,12.76992427,78.309,78.281,0.74490816]
[1771867925509,0.05453841,78.308,78.281,0.74490816]
[1771867925717,12.76992427,78.309,78.281,0.74490816]
[1771867926507,12.76992427,78.309,78.255,5.36086188]